lending/lending_fUSD_20240128
["ID","MTS","AMOUNT","RATE_DAILY","PERIOD"]
[312908415,1706454651696,-154.87502598,0.00052054,31]
[312908416,1706454651720,-523.97158506,0.00052054,31]
[312908417,1706454651744,-570.51063716,0.00052054,31]
[312908418,1706454651769,-178.85539734,0.00052054,31]
[312908419,1706454651793,-471.5596191,0.00052054,31]
[312908420,1706454651818,-547.93378831,0.00052054,31]
[312908421,1706454651843,-162.84844343,0.00052054,31]
[312908422,1706454651867,-500.0,0.00052054,31]
[312908423,1706454651892,-569.3418066,0.00052054,31]
[312908424,1706454651917,-541.07363594,0.00052054,31]
[312908425,1706454651941,-500.0,0.00052054,31]
[312908426,1706454651965,-500.0,0.00052054,31]
[312908427,1706454651989,-179.93937025,0.00052054,31]
[312908428,1706454652011,-561.00973567,0.00052054,31]
[312908429,1706454652035,-195.42820016,0.00052054,31]
[312908430,1706454652058,-500.0,0.00052054,31]
[312908431,1706454652082,-192.61628143,0.00052054,31]
[312908432,1706454652107,-192.80185543,0.00052054,31]
[312908433,1706454652131,-208.49289056,0.00052054,31]
[312908434,1706454652155,-500.0,0.00052054,31]
[312908435,1706454652179,-500.0,0.00052054,31]
[312908436,1706454652203,-481.86278347,0.00052054,31]
[312908437,1706454652227,-189.21577422,0.00052054,31]
[312908438,1706454652250,-150.30205118,0.00052054,31]
[312908439,1706454652275,-182.2797516,0.00052054,31]
[312908440,1706454652298,-221.86700129,0.00052054,31]
[312908441,1706454652321,-155.67873554,0.00052054,31]
[312908442,1706454652345,-500.0,0.00052054,31]
[312908443,1706454652368,-500.0,0.00052054,31]
[312908444,1706454652390,-500.0,0.00052054,31]
[312908445,1706454652412,-500.0,0.00052054,31]
[312908446,1706454652435,-500.0,0.00052054,31]
[312908447,1706454652548,-500.0,0.00052054,31]
[312908448,1706454652572,-500.0,0.00052054,31]
[312908449,1706454652595,-500.0,0.00052054,31]
[312908450,1706454652618,-500.0,0.00052054,31]
[312908451,1706454652640,-500.0,0.00052054,31]
[312908452,1706454652664,-500.0,0.00052054,31]
[312908453,1706454652688,-500.0,0.00052054,31]
[312908454,1706454652711,-500.0,0.00052054,31]
[312908455,1706454652733,-500.0,0.00052054,31]
[312908456,1706454652756,-500.0,0.00052054,31]
[312908457,1706454652779,-778.45,0.00052054,31]
[312908458,1706454652802,-500.0,0.00052054,31]
[312908459,1706454652828,-500.0,0.00052054,31]
[312908460,1706454652851,-500.0,0.00052054,31]
[312908461,1706454652875,-500.0,0.00052054,31]
[312908462,1706454652900,-417.98455154,0.00052054,31]
[312908463,1706454652927,-152.56164722,0.00052054,31]
[312908464,1706454652951,-191.3981966,0.00052054,31]
[312908465,1706454652975,-151.38596658,0.00052054,31]
[312908466,1706454652997,-500.0,0.00052054,31]
[312908467,1706454653021,-500.0,0.00052054,31]
[312908468,1706454653045,-160.05291143,0.00052054,31]
[312908469,1706454653069,-218.73011233,0.00052054,31]
[312908470,1706454653093,-513.23475054,0.00052054,31]
[312908471,1706454653120,-375.41768415,0.00052054,31]
[312908472,1706454653143,-500.0,0.00052054,31]
[312908473,1706454653167,-500.0,0.00052054,31]
[312908474,1706454653194,-500.0,0.00052054,31]
[312908475,1706454653217,-265.81028768,0.00052054,31]
[312908476,1706454653241,-613.5347204,0.00052054,31]
[312908477,1706454653266,-709.3,0.00052054,31]
[312908478,1706454653292,-500.0,0.00052054,31]
[312908479,1706454653318,-152.12040472,0.00052054,31]
[312908480,1706454653343,-501.98997472,0.00052054,31]
[312908481,1706454653368,-211.31758722,0.00052054,31]
[312908482,1706454653391,-500.0,0.00052054,31]
[312908483,1706454653417,-546.77,0.00052054,31]
[312908484,1706454653446,-500.0,0.00052054,31]
[312908485,1706454653470,-319.91036553,0.00052054,31]
[312908486,1706454653494,-854.4,0.00052054,31]
[312908487,1706454653517,-500.0,0.00052054,31]
[312908488,1706454653541,-177.82059992,0.00052054,31]
[312908489,1706454653565,-281.58893902,0.00052054,31]
[312908490,1706454653589,-151.34864436,0.00052054,31]
[312908491,1706454653615,-958.78,0.00052054,31]
[312908492,1706454653639,-276.99438476,0.00052054,31]
[312908493,1706454653664,-298.8328512,0.00052054,31]
[312908494,1706454653690,-247.70157602,0.00052054,31]
[312908495,1706454653713,-173.47770256,0.00052054,31]
[312908496,1706454653736,-500.0,0.00052054,31]
[312908497,1706454653759,-271.93636212,0.00052054,31]
[312908498,1706454653783,-655.44,0.00052054,31]
[312908499,1706454653807,-172.35099512,0.00052054,31]
[312908500,1706454653830,-225.63774194,0.00052054,31]
[312908501,1706454653855,-163.22213407,0.00052054,31]
[312908502,1706454653883,-279.1601022,0.00052054,31]
[312908503,1706454653907,-164.95779444,0.00052054,31]
[312908504,1706454653932,-255.6370173,0.00052054,31]
[312908505,1706454654027,-234.49929911,0.00052054,31]
[312908506,1706454654065,-500.0,0.00052054,31]
[312908507,1706454654089,-500.0,0.00052054,31]
[312908508,1706454654115,-213.79899497,0.00052054,31]
[312908509,1706454654138,-500.0,0.00052054,31]
[312908510,1706454654161,-204.08733967,0.00052054,31]
[312908511,1706454654185,-500.0,0.00052054,31]
[312908512,1706454654208,-150.09881209,0.00052054,31]
[312908513,1706454654231,-411.03966478,0.00052054,31]
[312908514,1706454654253,-562.5,0.00052054,120]
[312908515,1706454654277,-500.0,0.00052054,31]
[312908516,1706454654301,-305.85800001,0.00052054,31]
[312908517,1706454654325,-500.0,0.00052054,31]
[312908518,1706454654349,-500.0,0.00052054,31]
[312908519,1706454654372,-733.5,0.00052054,31]
[312908520,1706454654396,-170.82499669,0.00052054,31]
[312908521,1706454654418,-787.33,0.00052054,31]
[312908522,1706454654444,-199.31526923,0.00052054,31]
[312908523,1706454654467,-500.0,0.00052054,31]
[312908524,1706454654490,-500.0,0.00052054,31]
[312908525,1706454654514,-158.66988233,0.00052054,31]
[312908526,1706454654537,-208.1112062,0.00052054,31]
[312908527,1706454654560,-195.64494305,0.00052054,31]
[312908528,1706454654584,-500.0,0.00052054,31]
[312908529,1706454654607,-500.0,0.00052054,31]
[312908530,1706454654632,-500.0,0.00052054,31]
[312908531,1706454654655,-500.0,0.00052054,31]
[312908532,1706454654679,-500.0,0.00052054,31]
[312908533,1706454654701,-629.21,0.00052054,31]
[312908534,1706454654725,-500.0,0.00052054,31]
[312908535,1706454654750,-629.27,0.00052054,31]
[312908536,1706454654775,-500.0,0.00052054,31]
[312908537,1706454654800,-2086.17,0.00052054,31]
[312908538,1706454654826,-500.0,0.00052054,31]
[312908539,1706454654849,-343.19903334,0.00052054,31]
[312908540,1706454654874,-157.37729211,0.00052054,31]
[312908541,1706454654901,-218.67889445,0.00052054,31]
[312908542,1706454654925,-500.0,0.00052054,31]
[312908543,1706454654950,-500.0,0.00052054,31]
[312908544,1706454654973,-168.92333201,0.00052054,31]
[312908545,1706454654996,-196.06207316,0.00052054,31]
[312908546,1706454655021,-161.58601538,0.00052054,31]
[312908547,1706454655046,-227.98943914,0.00052054,31]
[312908548,1706454655071,-188.20042356,0.00052054,31]
[312908549,1706454655095,-500.0,0.00052054,31]
[312908550,1706454655122,-560.33,0.00052054,31]
[312908551,1706454655147,-220.83680799,0.00052054,31]
[312908552,1706454655171,-500.0,0.00052054,31]
[312908553,1706454655195,-500.0,0.00052054,31]
[312908554,1706454655221,-194.7588849,0.00052054,31]
[312908555,1706454655246,-500.0,0.00052054,31]
[312908556,1706454655270,-151.49948734,0.00052054,31]
[312908557,1706454655294,-500.0,0.00052054,31]
[312908558,1706454655317,-500.0,0.00052054,31]
[312908559,1706454655339,-500.0,0.00052054,31]
[312908560,1706454655363,-194.00226682,0.00052054,31]
[312908561,1706454655388,-500.0,0.00052054,31]
[312908562,1706454655501,-500.0,0.00052054,31]
[312908563,1706454655525,-181.81540905,0.00052054,31]
[312908564,1706454655548,-500.0,0.00052054,31]
[312908565,1706454655571,-500.0,0.00052054,31]
[312908566,1706454655595,-275.78609525,0.00052054,31]
[312908567,1706454655619,-500.0,0.00052054,31]
[312908568,1706454655644,-11346.51,0.00052054,31]
[312908569,1706454655671,-184.54961955,0.00052054,31]
[312908570,1706454655694,-151.34531025,0.00052054,31]
[312908571,1706454655716,-153.15903405,0.00052054,31]
[312908572,1706454655738,-500.0,0.00052054,30]
[312908573,1706454655762,-500.0,0.00052054,31]
[312908574,1706454655792,-500.0,0.00052054,31]
[312908575,1706454655817,-500.0,0.00052054,31]
[312908576,1706454655840,-500.0,0.00052054,31]
[312908577,1706454655863,-500.0,0.00052054,31]
[312908578,1706454655887,-174.94873971,0.00052054,31]
[312908579,1706454655910,-1249.59,0.00052054,31]
[312908580,1706454655935,-206.67045712,0.00052054,31]
[312908581,1706454655959,-222.2028368,0.00052054,31]
[312908582,1706454655983,-587.98489533,0.00052054,31]
[312908583,1706454656006,-265.5726371,0.00052054,31]
[312908584,1706454656030,-175.07802779,0.00052054,31]
[312908585,1706454656054,-164.26719581,0.00052054,31]
[312908586,1706454656086,-153.79888397,0.00052054,31]
[312908587,1706454656113,-312.57006401,0.00052054,31]
[312908588,1706454656138,-500.0,0.00052054,31]
[312908589,1706454656161,-7265.0,0.00052054,31]
[312908590,1706454656189,-170.58462962,0.00052054,31]
[312908591,1706454656213,-155.5432805,0.00052054,31]
[312908592,1706454656238,-297.6964629,0.00052054,31]
[312908593,1706454656263,-500.0,0.00052054,31]
[312908594,1706454656287,-1492.32,0.00052054,31]
[312908595,1706454656313,-500.0,0.00052054,31]
[312908596,1706454656338,-500.0,0.00052054,31]
[312908597,1706454656362,-500.0,0.00052054,31]
[312908598,1706454656386,-500.0,0.00052054,31]
[312908599,1706454656410,-1318.47,0.00052054,31]
[312908600,1706454656435,-500.0,0.00052054,31]
[312908601,1706454656459,-500.0,0.00052054,31]
[312908602,1706454656482,-417.49252424,0.00052054,31]
[312908603,1706454656504,-500.0,0.00052054,31]
[312908604,1706454656528,-619.0422664,0.00052054,31]
[312908605,1706454656552,-155.98129012,0.00052054,31]
[312908606,1706454656578,-177.96402483,0.00052054,31]
[312908607,1706454656603,-175.55000374,0.00052054,31]
[312908608,1706454656630,-205.68913154,0.00052054,31]
[312908609,1706454656653,-201.99094999,0.00052054,31]
[312908610,1706454656679,-500.0,0.00052054,31]
[312908611,1706454656702,-191.77049233,0.00052054,31]
[312908612,1706454656727,-214.93865883,0.00052054,31]
[312908613,1706454656751,-500.0,0.00052054,31]
[312908614,1706454656775,-500.0,0.00052054,31]
[312908615,1706454656799,-500.0,0.00052054,31]
[312908616,1706454656902,-500.0,0.00052054,31]
[312908617,1706454656927,-173.77778476,0.00052054,31]
[312908618,1706454656953,-159.88476639,0.00052054,31]
[312908619,1706454657003,-466.0,0.00052055,30]
[312908620,1706454657027,-466.0,0.00052055,30]
[312908621,1706454657050,-466.0,0.00052055,30]
[312908622,1706454657074,-466.0,0.00052055,30]
[312908623,1706454657097,-466.0,0.00052055,30]
[312908624,1706454657123,-466.0,0.00052055,30]
[312908625,1706454657148,-466.0,0.00052055,30]
[312908626,1706454657170,-466.0,0.00052055,30]
[312908627,1706454657195,-466.0,0.00052055,30]
[312908628,1706454657218,-466.0,0.00052055,30]
[312908629,1706454657244,-466.0,0.00052055,30]
[312908630,1706454657267,-466.0,0.00052055,30]
[312908631,1706454657291,-466.0,0.00052055,30]
[312908632,1706454657314,-466.0,0.00052055,30]
[312908633,1706454657337,-466.0,0.00052055,30]
[312908634,1706454657364,-466.0,0.00052055,30]
[312908635,1706454657392,-466.0,0.00052055,30]
[312908636,1706454657415,-466.0,0.00052055,30]
[312908637,1706454657439,-466.0,0.00052055,30]
[312908638,1706454657464,-466.0,0.00052055,30]
[312908639,1706454657487,-341.763533,0.00052055,30]
[312908640,1706454657536,-409.72,0.00052055,30]
[312908641,1706454657562,-409.72,0.00052055,30]
[312908642,1706454657586,-409.72,0.00052055,30]
[312908643,1706454657612,-409.72,0.00052055,30]
[312908644,1706454657638,-409.72,0.00052055,30]
[312908645,1706454657661,-409.72,0.00052055,30]
[312908646,1706454657685,-409.72,0.00052055,30]
[312908647,1706454657708,-500.0,0.00052055,30]
[312908648,1706454657733,-209.0,0.00052062,45]
[312908649,1706454657789,-153.15441342,0.00052089,30]
[312908650,1706454657814,-151.0128,0.00052148,59]
[312908651,1706454657837,-66449.0,0.00052205,30]
[312908652,1706454657863,-2321.0,0.00052205,30]
[312908653,1706454657888,-521.0,0.00052205,30]
[312908654,1706454657911,-5000.0,0.0005225,120]
[312908655,1706454657934,-5000.0,0.0005225,120]
[312908656,1706454657957,-451.73959709,0.00052328,31]
[312908657,1706454657982,-500.0,0.00052328,31]
[312908658,1706454658006,-500.0,0.00052328,31]
[312908659,1706454658030,-510.50728439,0.00052328,31]
[312908660,1706454658054,-543.44,0.00052328,31]
[312908661,1706454658082,-500.0,0.00052328,31]
[312908662,1706454658108,-500.0,0.00052328,31]
[312908663,1706454658215,-500.0,0.00052328,31]
[312908664,1706454658239,-500.0,0.00052328,31]
[312908665,1706454658264,-500.0,0.00052328,31]
[312908666,1706454658288,-500.0,0.00052328,31]
[312908667,1706454658312,-500.0,0.00052328,31]
[312908668,1706454658336,-500.0,0.00052328,31]
[312908669,1706454658361,-500.0,0.00052328,31]
[312908670,1706454658385,-834.81,0.00052328,31]
[312908671,1706454658410,-528.23,0.00052328,31]
[312908672,1706454658434,-500.0,0.00052328,31]
[312908673,1706454658458,-500.0,0.00052328,31]
[312908674,1706454658482,-586.28,0.00052328,31]
[312908675,1706454658505,-500.0,0.00052328,31]
[312908676,1706454658528,-482.11277682,0.00052328,31]
[312908677,1706454658552,-574.30844973,0.00052328,31]
[312908678,1706454658577,-500.0,0.00052328,31]
[312908679,1706454658601,-500.0,0.00052328,31]
[312908680,1706454658625,-462.69627942,0.00052328,31]
[312908681,1706454658650,-500.0,0.00052328,31]
[312908682,1706454658673,-736.24,0.00052328,31]
[312908683,1706454658699,-500.0,0.00052328,31]
[312908684,1706454658723,-155.15280983,0.00052328,31]
[312908685,1706454658747,-500.0,0.00052328,31]
[312908686,1706454658771,-500.0,0.00052328,31]
[312908687,1706454658794,-500.0,0.00052328,31]
[312908688,1706454658818,-191.77394546,0.00052328,31]
[312908689,1706454658843,-500.0,0.00052328,31]
[312908690,1706454658869,-500.0,0.00052328,31]
[312908691,1706454658892,-500.0,0.00052328,31]
[312908692,1706454658916,-500.0,0.00052328,31]
[312908693,1706454658940,-500.0,0.00052328,31]
[312908694,1706454658964,-311.06508396,0.00052328,31]
[312908695,1706454658988,-1590.02,0.00052328,31]
[312908696,1706454659012,-462.06847632,0.00052328,31]
[312908697,1706454659038,-500.0,0.00052328,31]
[312908698,1706454659062,-500.0,0.00052328,31]
[312908699,1706454659085,-500.0,0.00052328,31]
[312908700,1706454659110,-500.0,0.00052328,31]
[312908701,1706454659135,-778.45,0.00052328,31]
[312908702,1706454659160,-500.0,0.00052328,31]
[312908703,1706454659186,-500.0,0.00052328,31]
[312908704,1706454659210,-500.0,0.00052328,31]
[312908705,1706454659232,-500.0,0.00052328,31]
[312908706,1706454659254,-335.30974334,0.00052328,31]
[312908707,1706454659280,-709.3,0.00052328,31]
[312908708,1706454659303,-301.99924805,0.00052328,31]
[312908709,1706454659328,-317.87954582,0.00052328,31]
[312908710,1706454659352,-546.77,0.00052328,31]
[312908711,1706454659376,-253.03172467,0.00052328,31]
[312908712,1706454659400,-854.4,0.00052328,31]
[312908713,1706454659502,-500.0,0.00052328,31]
[312908714,1706454659531,-958.78,0.00052328,31]
[312908715,1706454659555,-500.0,0.00052328,31]
[312908716,1706454659581,-655.44,0.00052328,31]
[312908717,1706454659605,-500.0,0.00052328,31]
[312908718,1706454659629,-500.0,0.00052328,31]
[312908719,1706454659654,-413.02877312,0.00052328,31]
[312908720,1706454659681,-500.0,0.00052328,31]
[312908721,1706454659706,-500.0,0.00052328,31]
[312908722,1706454659729,-500.0,0.00052328,31]
[312908723,1706454659752,-500.0,0.00052328,31]
[312908724,1706454659778,-733.5,0.00052328,31]
[312908725,1706454659801,-787.33,0.00052328,31]
[312908726,1706454659824,-500.0,0.00052328,31]
[312908727,1706454659848,-500.0,0.00052328,31]
[312908728,1706454659872,-500.0,0.00052328,31]
[312908729,1706454659895,-500.0,0.00052328,31]
[312908730,1706454659920,-500.0,0.00052328,31]
[312908731,1706454659943,-500.0,0.00052328,31]
[312908732,1706454659967,-500.0,0.00052328,31]
[312908733,1706454659991,-629.21,0.00052328,31]
[312908734,1706454660017,-500.0,0.00052328,31]
[312908735,1706454660041,-629.27,0.00052328,31]
[312908736,1706454660064,-500.0,0.00052328,31]
[312908737,1706454660087,-2086.17,0.00052328,31]
[312908738,1706454660113,-500.0,0.00052328,31]
[312908739,1706454660137,-500.0,0.00052328,31]
[312908740,1706454660161,-500.0,0.00052328,31]
[312908741,1706454660185,-500.0,0.00052328,31]
[312908742,1706454660210,-500.0,0.00052328,31]
[312908743,1706454660233,-500.0,0.00052328,31]
[312908744,1706454660257,-500.0,0.00052328,31]
[312908745,1706454660281,-500.0,0.00052328,31]
[312908746,1706454660310,-500.0,0.00052328,31]
[312908747,1706454660334,-500.0,0.00052328,31]
[312908748,1706454660360,-400.11655483,0.00052328,31]
[312908749,1706454660383,-500.0,0.00052328,31]
[312908750,1706454660407,-500.0,0.00052328,31]
[312908751,1706454660432,-500.0,0.00052328,31]
[312908752,1706454660456,-500.0,0.00052328,31]
[312908753,1706454660480,-11346.51,0.00052328,31]
[312908754,1706454660503,-500.0,0.00052328,30]
[312908755,1706454660527,-500.0,0.00052328,31]
[312908756,1706454660551,-500.0,0.00052328,31]
[312908757,1706454660574,-500.0,0.00052328,31]
[312908758,1706454660599,-500.0,0.00052328,31]
[312908759,1706454660623,-500.0,0.00052328,31]
[312908760,1706454660646,-1249.59,0.00052328,31]
[312908761,1706454660670,-7265.0,0.00052328,31]
[312908762,1706454660773,-500.0,0.00052328,31]
[312908763,1706454660811,-500.0,0.00052328,31]
[312908764,1706454660834,-1492.32,0.00052328,31]
[312908765,1706454660859,-500.0,0.00052328,31]
[312908766,1706454660883,-500.0,0.00052328,31]
[312908767,1706454660908,-500.0,0.00052328,31]
[312908768,1706454660932,-436.46169954,0.00052328,31]
[312908769,1706454660957,-1318.47,0.00052328,31]
[312908770,1706454660981,-500.0,0.00052328,31]
[312908771,1706454661005,-500.0,0.00052328,31]
[312908772,1706454661034,-500.0,0.00052328,31]
[312908773,1706454661059,-500.0,0.00052328,31]
[312908774,1706454661084,-261.21709949,0.00052328,31]
[312908775,1706454661112,-500.0,0.00052328,31]
[312908776,1706454661137,-500.0,0.00052328,31]
[312908777,1706454661167,-500.0,0.00052328,31]
[312908778,1706454661193,-407.0,0.000524,120]
[312908779,1706454661217,-150.101,0.000524,30]
[312908780,1706454661241,-288.64024205,0.000524,30]
[312908781,1706454661266,-151.0128,0.00052498,59]
[312908782,1706454661290,-242.82557165,0.000525,120]
[312908783,1706454661314,-7502.39306571,0.000525,120]
[312908784,1706454661337,-156.0,0.000525,120]
[312908785,1706454661363,-157.0128,0.00052548,59]
[312908786,1706454661387,-153.15441342,0.00052589,30]
[312908787,1706454661411,-500.0,0.00052602,31]
[312908788,1706454661435,-500.0,0.00052602,31]
[312908789,1706454661459,-543.44,0.00052602,31]
[312908790,1706454661482,-546.54497478,0.00052602,31]
[312908791,1706454661506,-594.08992024,0.00052602,31]
[312908792,1706454661530,-500.0,0.00052602,31]
[312908793,1706454661553,-500.0,0.00052602,31]
[312908794,1706454661577,-500.0,0.00052602,31]
[312908795,1706454661600,-241.69695898,0.00052602,31]
[312908796,1706454661623,-500.0,0.00052602,31]
[312908797,1706454661647,-603.24504353,0.00052602,31]
[312908798,1706454661671,-352.55698338,0.00052602,31]
[312908799,1706454661694,-834.81,0.00052602,31]
[312908800,1706454661717,-528.23,0.00052602,31]
[312908801,1706454661741,-500.0,0.00052602,31]
[312908802,1706454661764,-500.0,0.00052602,31]
[312908803,1706454661788,-586.28,0.00052602,31]
[312908804,1706454661810,-278.44547371,0.00052602,31]
[312908805,1706454661837,-500.0,0.00052602,31]
[312908806,1706454661862,-500.0,0.00052602,31]
[312908807,1706454661886,-500.0,0.00052602,31]
[312908808,1706454661909,-736.24,0.00052602,31]
[312908809,1706454661933,-500.0,0.00052602,31]
[312908810,1706454662042,-500.0,0.00052602,31]
[312908811,1706454662066,-508.14588588,0.00052602,31]
[312908812,1706454662089,-500.0,0.00052602,31]
[312908813,1706454662114,-552.19012471,0.00052602,31]
[312908814,1706454662136,-500.0,0.00052602,31]
[312908815,1706454662160,-500.0,0.00052602,31]
[312908816,1706454662184,-257.16726617,0.00052602,31]
[312908817,1706454662207,-500.0,0.00052602,31]
[312908818,1706454662229,-1590.02,0.00052602,31]
[312908819,1706454662252,-547.01519936,0.00052602,31]
[312908820,1706454662277,-188.53119985,0.00052602,31]
[312908821,1706454662300,-514.63414862,0.00052602,31]
[312908822,1706454662322,-500.000001,0.00052602,31]
[312908823,1706454662345,-778.45,0.00052602,31]
[312908824,1706454662368,-500.0,0.00052602,31]
[312908825,1706454662391,-308.98493721,0.00052602,31]
[312908826,1706454662413,-500.0,0.00052602,31]
[312908827,1706454662436,-157.95672956,0.00052602,31]
[312908828,1706454662459,-709.3,0.00052602,31]
[312908829,1706454662482,-546.77,0.00052602,31]
[312908830,1706454662505,-854.4,0.00052602,31]
[312908831,1706454662527,-500.0,0.00052602,31]
[312908832,1706454662553,-958.78,0.00052602,31]
[312908833,1706454662576,-500.0,0.00052602,31]
[312908834,1706454662599,-655.44,0.00052602,31]
[312908835,1706454662622,-325.54800598,0.00052602,31]
[312908836,1706454662644,-500.0,0.00052602,31]
[312908837,1706454662668,-500.0,0.00052602,31]
[312908838,1706454662692,-500.0,0.00052602,31]
[312908839,1706454662717,-500.0,0.00052602,31]
[312908840,1706454662742,-500.0,0.00052602,31]
[312908841,1706454662766,-733.5,0.00052602,31]
[312908842,1706454662791,-787.33,0.00052602,31]
[312908843,1706454662815,-500.0,0.00052602,31]
[312908844,1706454662841,-500.0,0.00052602,31]
[312908845,1706454662866,-500.0,0.00052602,31]
[312908846,1706454662893,-500.0,0.00052602,31]
[312908847,1706454662918,-500.0,0.00052602,31]
[312908848,1706454662945,-500.0,0.00052602,31]
[312908849,1706454662971,-500.0,0.00052602,31]
[312908850,1706454662995,-629.21,0.00052602,31]
[312908851,1706454663019,-151.62855739,0.00052602,31]
[312908852,1706454663042,-629.27,0.00052602,31]
[312908853,1706454663064,-500.0,0.00052602,31]
[312908854,1706454663087,-2086.17,0.00052602,31]
[312908855,1706454663175,-500.0,0.00052602,31]
[312908856,1706454663209,-500.0,0.00052602,31]
[312908857,1706454663231,-500.0,0.00052602,31]
[312908858,1706454663254,-500.0,0.00052602,31]
[312908859,1706454663277,-500.0,0.00052602,31]
[312908860,1706454663299,-500.0,0.00052602,31]
[312908861,1706454663322,-500.0,0.00052602,31]
[312908862,1706454663344,-500.0,0.00052602,31]
[312908863,1706454663366,-593.05990031,0.00052602,31]
[312908864,1706454663389,-500.0,0.00052602,31]
[312908865,1706454663412,-500.0,0.00052602,31]
[312908866,1706454663437,-500.0,0.00052602,31]
[312908867,1706454663460,-535.18371993,0.00052602,31]
[312908868,1706454663485,-500.0,0.00052602,31]
[312908869,1706454663508,-11346.51,0.00052602,31]
[312908870,1706454663530,-500.0,0.00052602,30]
[312908871,1706454663553,-500.0,0.00052602,31]
[312908872,1706454663577,-500.0,0.00052602,31]
[312908873,1706454663601,-500.0,0.00052602,31]
[312908874,1706454663624,-500.0,0.00052602,31]
[312908875,1706454663647,-500.0,0.00052602,31]
[312908876,1706454663669,-1249.59,0.00052602,31]
[312908877,1706454663694,-7265.0,0.00052602,31]
[312908878,1706454663717,-500.0,0.00052602,31]
[312908879,1706454663741,-500.0,0.00052602,31]
[312908880,1706454663763,-1492.32,0.00052602,31]
[312908881,1706454663787,-500.0,0.00052602,31]
[312908882,1706454663811,-500.0,0.00052602,31]
[312908883,1706454663837,-500.0,0.00052602,31]
[312908884,1706454663862,-1318.47,0.00052602,31]
[312908885,1706454663885,-500.0,0.00052602,31]
[312908886,1706454663909,-500.0,0.00052602,31]
[312908887,1706454663933,-500.0,0.00052602,31]
[312908888,1706454663958,-500.0,0.00052602,31]
[312908889,1706454663981,-500.0,0.00052602,31]
[312908890,1706454664004,-500.0,0.00052602,31]
[312908891,1706454664027,-500.0,0.00052602,31]
[312908892,1706454664050,-5000.0,0.00052625,120]
[312908893,1706454664073,-5000.0,0.00052625,120]
[312908894,1706454664098,-151.0128,0.00052648,69]
[312908895,1706454664129,-66449.0,0.00052744,30]
[312908896,1706454664153,-2321.0,0.00052744,30]
[312908897,1706454664175,-521.0,0.00052744,30]
[312908898,1706454664202,-151.0128,0.00052748,59]
[312908899,1706454664225,-217.630547,0.00052748,30]
[312908900,1706454664319,-150.2066421,0.00052798,60]
[312908901,1706454664345,-505211.01812793,0.000528,60]
[312908902,1706454664371,-412.64597082,0.00052802,60]
[312908903,1706454664393,-155.9836626,0.00052814,60]
[312908904,1706454664414,-160.45378998,0.00052828,60]
[312908905,1706454664437,-154.58312369,0.00052828,60]
[312908906,1706454664459,-154.58312369,0.00052839,60]
[312908907,1706454664481,-1118.57219074,0.00052843,60]
[312908908,1706454664503,-412.64597082,0.00052862,60]
[312908909,1706454664526,-154.58312369,0.00052862,60]
[312908910,1706454664549,-157.3488617,0.00052869,60]
[312908911,1706454664571,-500.0,0.00052876,31]
[312908912,1706454664593,-500.0,0.00052876,31]
[312908913,1706454664616,-543.44,0.00052876,31]
[312908914,1706454664641,-500.0,0.00052876,31]